[Event "*** Titled Tuesday Blitz"]
[Site "Chess.com"]
[Date "2020.05.12"]
[Round "4"]
[White "OhanyanEminChess"]
[Black "hongnhung1234"]
[Result "1-0"]
[WhiteElo "2474"]
[BlackElo "2244"]
[TimeControl "180+1"]
[EndTime "10:38:05 PDT"]
[Termination "OhanyanEminChess won by checkmate"]

1. e4 {[%clk 0:03:00.9]} 1... c5 {[%clk 0:02:59.9]} 2. Nf3 {[%clk 0:03:01]} 2...
e6 {[%clk 0:03:00.4]} 3. d4 {[%clk 0:03:01.1]} 3... cxd4 {[%clk 0:03:01.3]} 4.
Nxd4 {[%clk 0:03:01]} 4... Nc6 {[%clk 0:03:01.7]} 5. Nc3 {[%clk 0:03:01.5]} 5...
Qc7 {[%clk 0:03:01.8]} 6. Be3 {[%clk 0:03:00.9]} 6... a6 {[%clk 0:03:01.9]} 7.
f3 {[%clk 0:03:01.3]} 7... Nf6 {[%clk 0:03:01.7]} 8. Qd2 {[%clk 0:03:01.7]} 8...
b5 {[%clk 0:03:02.1]} 9. O-O-O {[%clk 0:03:01.8]} 9... Bb7 {[%clk 0:03:02.2]}
10. g4 {[%clk 0:02:58.8]} 10... Be7 {[%clk 0:03:02.2]} 11. h4 {[%clk 0:02:57.7]}
11... b4 {[%clk 0:02:57.9]} 12. Na4 {[%clk 0:02:51.1]} 12... Nxd4 {[%clk
0:02:49.7]} 13. Bxd4 {[%clk 0:02:50.3]} 13... d5 {[%clk 0:02:40.6]} 14. Nb6
{[%clk 0:02:05.1]} 14... Rd8 {[%clk 0:02:22.5]} 15. e5 {[%clk 0:02:01.3]} 15...
Nd7 {[%clk 0:02:21.7]} 16. Nxd7 {[%clk 0:02:01.1]} 16... Qxd7 {[%clk 0:02:22.2]}
17. Bd3 {[%clk 0:01:59.4]} 17... Qa4 {[%clk 0:02:14.3]} 18. Kb1 {[%clk
0:01:59.3]} 18... O-O {[%clk 0:01:48]} 19. f4 {[%clk 0:01:56.4]} 19... Kh8
{[%clk 0:01:43.6]} 20. f5 {[%clk 0:01:55.8]} 20... b3 {[%clk 0:01:42.1]} 21. c3
{[%clk 0:01:06]} 21... Qxa2+ {[%clk 0:01:33.3]} 22. Kc1 {[%clk 0:01:05.9]} 22...
Rc8 {[%clk 0:01:24.3]} 23. f6 {[%clk 0:01:00.2]} 23... Bd8 {[%clk 0:00:29.3]}
24. Bb1 {[%clk 0:00:39.4]} 24... Qa1 {[%clk 0:00:27.4]} 25. Qd3 {[%clk
0:00:39.6]} 25... g6 {[%clk 0:00:23.8]} 26. h5 {[%clk 0:00:39.9]} 26... Kg8
{[%clk 0:00:15.8]} 27. hxg6 {[%clk 0:00:36.7]} 27... fxg6 {[%clk 0:00:15]} 28.
Rxh7 {[%clk 0:00:35.3]} 28... Qxb1+ {[%clk 0:00:12.4]} 29. Kxb1 {[%clk
0:00:34.2]} 29... Kxh7 {[%clk 0:00:13]} 30. Rh1+ {[%clk 0:00:34.3]} 30... Kg8
{[%clk 0:00:13.6]} 31. Qxg6# {[%clk 0:00:34.4]} 1-0

[Event "*** Titled Tuesday Blitz"]
[Site "Chess.com"]
[Date "2020.05.12"]
[Round "4"]
[White "RaunakSadhwani2005"]
[Black "Abund"]
[Result "1-0"]
[WhiteElo "2835"]
[BlackElo "2621"]
[TimeControl "180+1"]
[EndTime "10:38:06 PDT"]
[Termination "RaunakSadhwani2005 won on time"]

1. e4 {[%clk 0:03:00.9]} 1... c5 {[%clk 0:02:58]} 2. Nc3 {[%clk 0:02:58]} 2...
Nc6 {[%clk 0:02:57.6]} 3. Bb5 {[%clk 0:02:55.4]} 3... Nd4 {[%clk 0:02:57]} 4.
Nf3 {[%clk 0:02:55.1]} 4... a6 {[%clk 0:02:57]} 5. Bd3 {[%clk 0:02:54.5]} 5...
Nc6 {[%clk 0:02:56.8]} 6. O-O {[%clk 0:02:52.4]} 6... d6 {[%clk 0:02:54.1]} 7.
b3 {[%clk 0:02:52.2]} 7... g6 {[%clk 0:02:47.6]} 8. Bb2 {[%clk 0:02:51.9]} 8...
Bg7 {[%clk 0:02:47.3]} 9. h3 {[%clk 0:02:50.6]} 9... Nf6 {[%clk 0:02:33]} 10.
Re1 {[%clk 0:02:50.7]} 10... e5 {[%clk 0:02:25.8]} 11. Bf1 {[%clk 0:02:43.5]}
11... O-O {[%clk 0:02:23.5]} 12. a4 {[%clk 0:02:28.6]} 12... Ne8 {[%clk
0:01:59.4]} 13. Bc4 {[%clk 0:02:27.9]} 13... Nc7 {[%clk 0:01:55.7]} 14. Nd5
{[%clk 0:02:27.8]} 14... Nxd5 {[%clk 0:01:48.7]} 15. exd5 {[%clk 0:02:23.1]}
15... Ne7 {[%clk 0:01:23.7]} 16. c3 {[%clk 0:02:23.3]} 16... b6 {[%clk
0:01:09.4]} 17. d4 {[%clk 0:02:22.8]} 17... f6 {[%clk 0:01:03.3]} 18. dxe5
{[%clk 0:02:13.6]} 18... fxe5 {[%clk 0:01:03.5]} 19. Ng5 {[%clk 0:01:50.4]}
19... h6 {[%clk 0:00:56.8]} 20. Ne6 {[%clk 0:01:42.2]} 20... Bxe6 {[%clk
0:00:56.7]} 21. dxe6 {[%clk 0:01:43.1]} 21... d5 {[%clk 0:00:57.1]} 22. Be2
{[%clk 0:01:43.6]} 22... Qd6 {[%clk 0:00:52.6]} 23. c4 {[%clk 0:01:43.6]} 23...
d4 {[%clk 0:00:45.1]} 24. Bg4 {[%clk 0:01:39]} 24... h5 {[%clk 0:00:30.4]} 25.
Bf3 {[%clk 0:01:38.7]} 25... Rad8 {[%clk 0:00:28.4]} 26. a5 {[%clk 0:01:35.6]}
26... Qxe6 {[%clk 0:00:26.6]} 27. axb6 {[%clk 0:01:32.9]} 27... Qxb6 {[%clk
0:00:27.5]} 28. Qd3 {[%clk 0:01:33.5]} 28... Nf5 {[%clk 0:00:18.3]} 29. Ra3
{[%clk 0:01:29]} 29... Rd6 {[%clk 0:00:14.5]} 30. Rea1 {[%clk 0:01:29]} 30...
Rb8 {[%clk 0:00:12.2]} 31. Bc1 {[%clk 0:01:29.2]} 31... Kh8 {[%clk 0:00:08.6]}
32. Bd2 {[%clk 0:01:22.9]} 32... Qc7 {[%clk 0:00:04.1]} 33. Be4 {[%clk
0:01:21.2]} 33... Qf7 {[%clk 0:00:03.6]} 34. Rxa6 {[%clk 0:01:18.3]} 34... Rxa6
{[%clk 0:00:03.7]} 35. Rxa6 {[%clk 0:01:19.2]} 35... Qf8 {[%clk 0:00:02.8]} 36.
Rxg6 {[%clk 0:01:18]} 36... Nh4 {[%clk 0:00:03.1]} 37. Rg5 {[%clk 0:01:13.2]}
37... Qf7 {[%clk 0:00:01.5]} 38. g3 {[%clk 0:01:13.4]} 1-0

[Event "*** Titled Tuesday Blitz"]
[Site "Chess.com"]
[Date "2020.05.12"]
[Round "4"]
[White "Milchone1"]
[Black "marszach123"]
[Result "1-0"]
[WhiteElo "2490"]
[BlackElo "2180"]
[TimeControl "180+1"]
[EndTime "10:38:06 PDT"]
[Termination "Milchone1 won on time"]

1. Nf3 {[%clk 0:03:00.9]} 1... Nf6 {[%clk 0:02:58.5]} 2. c4 {[%clk 0:02:49.1]}
2... e6 {[%clk 0:02:58.7]} 3. g3 {[%clk 0:02:48.7]} 3... d5 {[%clk 0:02:58.3]}
4. Bg2 {[%clk 0:02:49.6]} 4... Be7 {[%clk 0:02:57.9]} 5. O-O {[%clk 0:02:50.5]}
5... O-O {[%clk 0:02:56.9]} 6. d4 {[%clk 0:02:51.4]} 6... dxc4 {[%clk
0:02:55.3]} 7. Qa4 {[%clk 0:02:51.4]} 7... a6 {[%clk 0:02:48.2]} 8. Qxc4 {[%clk
0:02:51.6]} 8... b5 {[%clk 0:02:48.2]} 9. Qc2 {[%clk 0:02:52.5]} 9... Bb7 {[%clk
0:02:48.7]} 10. Bd2 {[%clk 0:02:53.4]} 10... Nbd7 {[%clk 0:02:41.3]} 11. Ba5
{[%clk 0:02:52.4]} 11... Nb6 {[%clk 0:02:34.1]} 12. Nbd2 {[%clk 0:02:51.3]}
12... Rc8 {[%clk 0:02:28]} 13. b4 {[%clk 0:02:50.1]} 13... Bd5 {[%clk
0:02:20.8]} 14. Rfd1 {[%clk 0:02:43]} 14... Nc4 {[%clk 0:02:14]} 15. Nxc4 {[%clk
0:02:41.9]} 15... Bxc4 {[%clk 0:02:14]} 16. Ne5 {[%clk 0:02:40.9]} 16... Bd5
{[%clk 0:02:06.5]} 17. e4 {[%clk 0:02:38.1]} 17... Bb7 {[%clk 0:02:05.1]} 18.
Nc6 {[%clk 0:02:37.8]} 18... Bxc6 {[%clk 0:01:50.5]} 19. Qxc6 {[%clk 0:02:38.7]}
19... Qd6 {[%clk 0:01:50.5]} 20. Rac1 {[%clk 0:02:34.2]} 20... Nd7 {[%clk
0:00:51.2]} 21. e5 {[%clk 0:02:20.3]} 21... Qxc6 {[%clk 0:00:50.3]} 22. Rxc6
{[%clk 0:02:21.2]} 22... Nb6 {[%clk 0:00:47.3]} 23. Bf1 {[%clk 0:02:09.9]} 23...
Rfd8 {[%clk 0:00:36.3]} 24. a3 {[%clk 0:02:08.7]} 24... f6 {[%clk 0:00:27.4]}
25. Bxb6 {[%clk 0:01:50.6]} 25... cxb6 {[%clk 0:00:26.1]} 26. Rxe6 {[%clk
0:01:51.1]} 26... Kf7 {[%clk 0:00:24.9]} 27. Bh3 {[%clk 0:01:50.2]} 27... fxe5
{[%clk 0:00:22.7]} 28. Rxe5 {[%clk 0:01:47.7]} 28... Rc3 {[%clk 0:00:20.7]} 29.
d5 {[%clk 0:01:44.7]} 29... Rxa3 {[%clk 0:00:18.7]} 30. Be6+ {[%clk 0:01:44.1]}
30... Kf6 {[%clk 0:00:16.5]} 31. Rf5+ {[%clk 0:01:43.6]} 31... Kg6 {[%clk
0:00:16.5]} 32. Rf7 {[%clk 0:01:44]} 32... Bxb4 {[%clk 0:00:11.1]} 33. Kg2
{[%clk 0:01:38.2]} 33... a5 {[%clk 0:00:10.8]} 34. h4 {[%clk 0:01:36.3]} 34...
Bc5 {[%clk 0:00:10.8]} 35. Rd2 {[%clk 0:01:35.9]} 35... a4 {[%clk 0:00:10.7]}
36. g4 {[%clk 0:01:35.1]} 36... h5 {[%clk 0:00:09.8]} 37. g5 {[%clk 0:01:33.8]}
37... b4 {[%clk 0:00:05.4]} 38. f4 {[%clk 0:01:33.6]} 38... b3 {[%clk
0:00:04.4]} 39. f5+ {[%clk 0:01:33.7]} 39... Kh7 {[%clk 0:00:04]} 40. f6 {[%clk
0:01:33.9]} 40... Ra2 {[%clk 0:00:02.3]} 41. Rxg7+ {[%clk 0:01:19.7]} 41... Kh8
{[%clk 0:00:02.1]} 42. Rxa2 {[%clk 0:01:20.6]} 42... bxa2 {[%clk 0:00:01.7]} 43.
g6 {[%clk 0:01:20.8]} 1-0

[Event "*** Titled Tuesday Blitz"]
[Site "Chess.com"]
[Date "2020.05.12"]
[Round "4"]
[White "bazar-wokzal"]
[Black "Indianlad"]
[Result "0-1"]
[WhiteElo "2547"]
[BlackElo "2929"]
[TimeControl "180+1"]
[EndTime "10:38:10 PDT"]
[Termination "Indianlad won by resignation"]

1. e4 {[%clk 0:03:00.9]} 1... c5 {[%clk 0:03:00.1]} 2. c3 {[%clk 0:03:00.4]}
2... d5 {[%clk 0:02:59.7]} 3. exd5 {[%clk 0:03:00]} 3... Nf6 {[%clk 0:03:00.4]}
4. Bb5+ {[%clk 0:02:58.8]} 4... Bd7 {[%clk 0:02:59.1]} 5. Bxd7+ {[%clk
0:02:58.3]} 5... Qxd7 {[%clk 0:02:59.8]} 6. c4 {[%clk 0:02:58.5]} 6... e6 {[%clk
0:02:59.8]} 7. dxe6 {[%clk 0:02:57.9]} 7... fxe6 {[%clk 0:03:00.7]} 8. Nf3
{[%clk 0:02:57]} 8... Nc6 {[%clk 0:03:01.6]} 9. O-O {[%clk 0:02:56.4]} 9... Bd6
{[%clk 0:03:01.5]} 10. Nc3 {[%clk 0:02:54.5]} 10... O-O {[%clk 0:03:01.9]} 11.
d3 {[%clk 0:02:53.9]} 11... Ng4 {[%clk 0:03:02.4]} 12. h3 {[%clk 0:02:49.3]}
12... Nge5 {[%clk 0:03:02.7]} 13. Nxe5 {[%clk 0:02:43.4]} 13... Bxe5 {[%clk
0:03:03.6]} 14. Be3 {[%clk 0:02:41]} 14... b6 {[%clk 0:03:03.5]} 15. Qe2 {[%clk
0:02:37.9]} 15... Rad8 {[%clk 0:03:03.7]} 16. Rad1 {[%clk 0:02:37]} 16... h6
{[%clk 0:03:04.4]} 17. Ne4 {[%clk 0:02:31.4]} 17... Rf5 {[%clk 0:03:02]} 18. b3
{[%clk 0:02:23.2]} 18... Rdf8 {[%clk 0:03:02]} 19. Rfe1 {[%clk 0:02:14.2]} 19...
Kh8 {[%clk 0:03:02]} 20. Qg4 {[%clk 0:02:08.5]} 20... Bf4 {[%clk 0:02:55.8]} 21.
Re2 {[%clk 0:02:02.2]} 21... Ne5 {[%clk 0:02:45]} 22. Qh4 {[%clk 0:02:02.2]}
22... Ng6 {[%clk 0:02:44.3]} 23. Qg4 {[%clk 0:01:59.2]} 23... Qf7 {[%clk
0:02:40.7]} 24. Red2 {[%clk 0:01:49.2]} 24... Ne5 {[%clk 0:02:33.4]} 25. Qe2
{[%clk 0:01:48.5]} 25... Qg6 {[%clk 0:02:34]} 26. Kh1 {[%clk 0:01:46.7]} 26...
Rh5 {[%clk 0:02:30.5]} 27. Bxf4 {[%clk 0:01:42.9]} 27... Rxf4 {[%clk 0:02:30.1]}
28. Ng3 {[%clk 0:01:42.5]} 28... Rg5 {[%clk 0:02:28.1]} 29. d4 {[%clk 0:01:39]}
29... Nc6 {[%clk 0:02:24.4]} 30. dxc5 {[%clk 0:01:34.9]} 30... bxc5 {[%clk
0:02:25.3]} 31. Rd6 {[%clk 0:01:20.5]} 31... Nd4 {[%clk 0:02:24.7]} 32. Qe3
{[%clk 0:01:19.2]} 32... Qf7 {[%clk 0:02:17.9]} 33. Kg1 {[%clk 0:01:15]} 33...
h5 {[%clk 0:02:16.4]} 34. Ne4 {[%clk 0:01:03.6]} 34... Re5 {[%clk 0:01:29.1]}
35. R1xd4 {[%clk 0:01:00.4]} 35... cxd4 {[%clk 0:01:28.3]} 36. Rxd4 {[%clk
0:01:00.2]} 36... h4 {[%clk 0:01:17.6]} 37. f3 {[%clk 0:00:56.9]} 37... Ra5
{[%clk 0:01:10]} 38. Qd3 {[%clk 0:00:55.2]} 38... Qg6 {[%clk 0:01:08.3]} 39.
Rd8+ {[%clk 0:00:52.6]} 39... Kh7 {[%clk 0:01:09]} 40. Qd2 {[%clk 0:00:41.8]}
40... Raf5 {[%clk 0:01:09.5]} 41. Kh1 {[%clk 0:00:34.7]} 41... Rxe4 {[%clk
0:00:59.3]} 0-1

[Event "*** Titled Tuesday Blitz"]
[Site "Chess.com"]
[Date "2020.05.12"]
[Round "4"]
[White "AnishGiri"]
[Black "DariaVoit"]
[Result "1-0"]
[WhiteElo "3022"]
[BlackElo "2551"]
[TimeControl "180+1"]
[EndTime "10:38:11 PDT"]
[Termination "AnishGiri won by resignation"]

1. e4 {[%clk 0:03:00.9]} 1... e6 {[%clk 0:03:00]} 2. d4 {[%clk 0:03:00.7]} 2...
d5 {[%clk 0:03:00.2]} 3. e5 {[%clk 0:03:01.3]} 3... c5 {[%clk 0:02:59.8]} 4. c3
{[%clk 0:03:01.9]} 4... Nc6 {[%clk 0:02:59.1]} 5. Nf3 {[%clk 0:03:02.4]} 5...
Qb6 {[%clk 0:02:59.1]} 6. Be2 {[%clk 0:03:03]} 6... cxd4 {[%clk 0:02:51.1]} 7.
cxd4 {[%clk 0:03:03.9]} 7... Nge7 {[%clk 0:02:44.5]} 8. Na3 {[%clk 0:03:03.6]}
8... Nf5 {[%clk 0:02:40.7]} 9. Nc2 {[%clk 0:03:04.1]} 9... Bb4+ {[%clk
0:02:36.3]} 10. Kf1 {[%clk 0:02:52.6]} 10... Be7 {[%clk 0:02:16.2]} 11. h4
{[%clk 0:02:50.1]} 11... h5 {[%clk 0:02:14.4]} 12. g3 {[%clk 0:02:43.5]} 12...
Bd7 {[%clk 0:02:04.3]} 13. Kg2 {[%clk 0:02:43.8]} 13... Nb4 {[%clk 0:02:02]} 14.
Nxb4 {[%clk 0:02:20.1]} 14... Qxb4 {[%clk 0:02:01.5]} 15. a3 {[%clk 0:02:01.8]}
15... Qb6 {[%clk 0:01:55]} 16. a4 {[%clk 0:02:01.7]} 16... Bb4 {[%clk
0:01:36.7]} 17. Bg5 {[%clk 0:01:56.8]} 17... Rc8 {[%clk 0:01:36.1]} 18. Qd3
{[%clk 0:01:36.7]} 18... O-O {[%clk 0:01:30.8]} 19. Rhd1 {[%clk 0:01:34.9]}
19... Rc7 {[%clk 0:01:12.2]} 20. Bd2 {[%clk 0:01:20.6]} 20... Bxd2 {[%clk
0:01:01.9]} 21. Rxd2 {[%clk 0:01:18.5]} 21... Rfc8 {[%clk 0:00:55.1]} 22. Ng5
{[%clk 0:01:17.8]} 22... g6 {[%clk 0:00:32.2]} 23. Bxh5 {[%clk 0:01:16.3]} 23...
gxh5 {[%clk 0:00:20.8]} 24. Qf3 {[%clk 0:01:16.3]} 24... Kg7 {[%clk 0:00:21.2]}
25. Qxh5 {[%clk 0:01:15.9]} 25... Nh6 {[%clk 0:00:21.7]} 26. Nh3 {[%clk
0:01:09.6]} 26... Rc2 {[%clk 0:00:19.7]} 27. Rad1 {[%clk 0:01:01.7]} 27... Rxd2
{[%clk 0:00:19.1]} 28. Rxd2 {[%clk 0:01:02.6]} 28... Qd8 {[%clk 0:00:17.6]} 29.
Nf4 {[%clk 0:01:01.6]} 29... Bxa4 {[%clk 0:00:14.4]} 30. Qf3 {[%clk 0:00:58.6]}
30... Rc2 {[%clk 0:00:13.1]} 31. Nh5+ {[%clk 0:00:57.9]} 31... Kh7 {[%clk
0:00:13]} 32. Nf6+ {[%clk 0:00:57.4]} 32... Kg7 {[%clk 0:00:12.8]} 33. Qf4
{[%clk 0:00:57.5]} 33... Rxd2 {[%clk 0:00:11]} 34. Qg5+ {[%clk 0:00:57.1]} 34...
Kf8 {[%clk 0:00:10.9]} 35. Qxh6+ {[%clk 0:00:56.8]} 35... Ke7 {[%clk 0:00:10.5]}
36. Qxd2 {[%clk 0:00:57.5]} 36... Qb6 {[%clk 0:00:07.2]} 37. h5 {[%clk
0:00:57.8]} 37... Qd8 {[%clk 0:00:05]} 38. h6 {[%clk 0:00:58.1]} 38... Qh8
{[%clk 0:00:05.6]} 39. Qb4+ {[%clk 0:00:57.9]} 39... Kd8 {[%clk 0:00:05.4]} 40.
Qxa4 {[%clk 0:00:58.3]} 1-0

[Event "*** Titled Tuesday Blitz"]
[Site "Chess.com"]
[Date "2020.05.12"]
[Round "4"]
[White "serhanberat_ozdemir"]
[Black "quesfr"]
[Result "1-0"]
[WhiteElo "2494"]
[BlackElo "2278"]
[TimeControl "180+1"]
[EndTime "10:38:12 PDT"]
[Termination "serhanberat_ozdemir won by resignation"]

1. e4 {[%clk 0:03:00.9]} 1... e6 {[%clk 0:02:59.2]} 2. d4 {[%clk 0:03:00.7]}
2... d5 {[%clk 0:02:59.8]} 3. Nd2 {[%clk 0:03:01.3]} 3... c5 {[%clk 0:02:57.9]}
4. Ngf3 {[%clk 0:03:00.7]} 4... Nc6 {[%clk 0:02:55.2]} 5. exd5 {[%clk
0:03:00.4]} 5... exd5 {[%clk 0:02:56.1]} 6. Bb5 {[%clk 0:03:00.6]} 6... cxd4
{[%clk 0:02:51]} 7. Nxd4 {[%clk 0:02:57.8]} 7... Bd7 {[%clk 0:02:51.5]} 8. N2f3
{[%clk 0:02:53.1]} 8... Bd6 {[%clk 0:02:47.1]} 9. O-O {[%clk 0:02:51.9]} 9...
Nge7 {[%clk 0:02:47.2]} 10. c3 {[%clk 0:02:49.1]} 10... O-O {[%clk 0:02:46.8]}
11. h3 {[%clk 0:02:48.7]} 11... h6 {[%clk 0:02:45.8]} 12. Bd3 {[%clk 0:02:48]}
12... Nxd4 {[%clk 0:02:40.5]} 13. Nxd4 {[%clk 0:02:47.6]} 13... Nc6 {[%clk
0:02:40.8]} 14. Be3 {[%clk 0:02:47.1]} 14... Qf6 {[%clk 0:02:35.4]} 15. Qf3
{[%clk 0:02:37.4]} 15... Qxf3 {[%clk 0:02:00]} 16. Nxf3 {[%clk 0:02:38.3]} 16...
Rad8 {[%clk 0:01:53.5]} 17. Rad1 {[%clk 0:02:32]} 17... Rfe8 {[%clk 0:01:51.7]}
18. Bc2 {[%clk 0:02:26.4]} 18... Be6 {[%clk 0:01:48.1]} 19. Nd4 {[%clk
0:02:20.6]} 19... Nxd4 {[%clk 0:00:57.6]} 20. Bxd4 {[%clk 0:02:21.5]} 20... a6
{[%clk 0:00:52.8]} 21. Rfe1 {[%clk 0:02:12.5]} 21... Kf8 {[%clk 0:00:51.6]} 22.
Bb3 {[%clk 0:02:11.3]} 22... Re7 {[%clk 0:00:44.8]} 23. Kf1 {[%clk 0:02:02.5]}
23... Red7 {[%clk 0:00:35.8]} 24. Bb6 {[%clk 0:02:01.8]} 24... Bc7 {[%clk
0:00:33.1]} 25. Bxc7 {[%clk 0:02:00.6]} 25... Rxc7 {[%clk 0:00:33.3]} 26. Rd4
{[%clk 0:02:01.3]} 26... Rc5 {[%clk 0:00:20.4]} 27. Red1 {[%clk 0:01:58.8]}
27... Rdc8 {[%clk 0:00:19]} 28. Bxd5 {[%clk 0:01:54.2]} 28... Bxd5 {[%clk
0:00:19.1]} 29. Rxd5 {[%clk 0:01:55.1]} 29... Rxd5 {[%clk 0:00:19.2]} 30. Rxd5
{[%clk 0:01:56]} 30... Ke7 {[%clk 0:00:19.5]} 31. Ke2 {[%clk 0:01:55.7]} 31...
Ke6 {[%clk 0:00:19]} 32. Rd4 {[%clk 0:01:55.5]} 32... Ke5 {[%clk 0:00:16.1]} 33.
f4+ {[%clk 0:01:54.8]} 33... Ke6 {[%clk 0:00:16]} 34. g4 {[%clk 0:01:54.7]}
34... g6 {[%clk 0:00:15.6]} 35. Kd3 {[%clk 0:01:53.4]} 35... h5 {[%clk
0:00:15.2]} 36. a4 {[%clk 0:01:47.3]} 36... hxg4 {[%clk 0:00:15.2]} 37. hxg4
{[%clk 0:01:48.2]} 37... Rh8 {[%clk 0:00:15.4]} 38. Rb4 {[%clk 0:01:46.6]} 38...
Rh4 {[%clk 0:00:15]} 39. Rxb7 {[%clk 0:01:46.2]} 39... Rxg4 {[%clk 0:00:14.7]}
40. Rb6+ {[%clk 0:01:47.1]} 40... Ke7 {[%clk 0:00:11.1]} 41. Ke3 {[%clk
0:01:43.4]} 41... Rg3+ {[%clk 0:00:09.6]} 42. Ke4 {[%clk 0:01:40]} 42... Rg2
{[%clk 0:00:08.7]} 43. b4 {[%clk 0:01:39.7]} 43... f5+ {[%clk 0:00:07.4]} 44.
Ke3 {[%clk 0:01:38.3]} 44... Rg3+ {[%clk 0:00:07.2]} 45. Kd4 {[%clk 0:01:38.5]}
45... Rf3 {[%clk 0:00:06.1]} 46. Rxg6 {[%clk 0:01:38.7]} 46... Rxf4+ {[%clk
0:00:06.2]} 47. Kc5 {[%clk 0:01:37.5]} 47... Rf3 {[%clk 0:00:04.8]} 48. c4
{[%clk 0:01:36.3]} 48... f4 {[%clk 0:00:05.7]} 49. Rxa6 {[%clk 0:01:36.2]} 49...
Re3 {[%clk 0:00:05.5]} 50. Ra7+ {[%clk 0:01:35.6]} 50... Ke6 {[%clk 0:00:05]}
51. Ra8 {[%clk 0:01:35.6]} 51... f3 {[%clk 0:00:05.2]} 52. Rf8 {[%clk 0:01:35]}
52... Re5+ {[%clk 0:00:05.3]} 53. Kd4 {[%clk 0:01:32.2]} 53... Rf5 {[%clk
0:00:06.2]} 54. Rxf5 {[%clk 0:01:32.4]} 54... Kxf5 {[%clk 0:00:07.1]} 55. Ke3
{[%clk 0:01:33.1]} 55... Kg4 {[%clk 0:00:07.9]} 56. Kf2 {[%clk 0:01:33.3]} 1-0

[Event "*** Titled Tuesday Blitz"]
[Site "Chess.com"]
[Date "2020.05.12"]
[Round "4"]
[White "Revnov"]
[Black "GadimbayliA"]
[Result "1-0"]
[WhiteElo "2683"]
[BlackElo "2835"]
[TimeControl "180+1"]
[EndTime "10:38:14 PDT"]
[Termination "Revnov won on time"]

1. e4 {[%clk 0:02:36.8]} 1... e5 {[%clk 0:02:58.1]} 2. Nf3 {[%clk 0:02:36.9]}
2... d5 {[%clk 0:02:55.2]} 3. exd5 {[%clk 0:02:36.3]} 3... e4 {[%clk 0:02:56.1]}
4. Nd4 {[%clk 0:02:34.6]} 4... Qxd5 {[%clk 0:02:54.8]} 5. Nb3 {[%clk 0:02:32.1]}
5... Nf6 {[%clk 0:02:52.8]} 6. Nc3 {[%clk 0:02:32.4]} 6... Qe5 {[%clk
0:02:53.1]} 7. Be2 {[%clk 0:02:27.6]} 7... Bd6 {[%clk 0:02:52.8]} 8. d4 {[%clk
0:02:23.9]} 8... exd3 {[%clk 0:02:53.7]} 9. Qxd3 {[%clk 0:02:23.4]} 9... O-O
{[%clk 0:02:50.4]} 10. Be3 {[%clk 0:02:23.4]} 10... Nc6 {[%clk 0:02:50.6]} 11.
O-O-O {[%clk 0:02:19.5]} 11... Bf5 {[%clk 0:02:46.1]} 12. Qb5 {[%clk 0:02:18.2]}
12... Qe6 {[%clk 0:02:27.9]} 13. Qxb7 {[%clk 0:01:52.3]} 13... Bb4 {[%clk
0:01:50]} 14. Bf3 {[%clk 0:01:38.7]} 14... Ne4 {[%clk 0:00:34.5]} 15. Nd5 {[%clk
0:01:14.1]} 15... Rab8 {[%clk 0:00:27.2]} 16. Qa6 {[%clk 0:01:12]} 16... Rfd8
{[%clk 0:00:12.4]} 17. Nxc7 {[%clk 0:00:52.4]} 17... Qg6 {[%clk 0:00:12.6]} 18.
Rxd8+ {[%clk 0:00:48]} 18... Rxd8 {[%clk 0:00:13.5]} 19. Rd1 {[%clk 0:00:44.9]}
19... Rxd1+ {[%clk 0:00:13.4]} 20. Bxd1 {[%clk 0:00:45.8]} 20... h6 {[%clk
0:00:10.3]} 21. Nd5 {[%clk 0:00:42.1]} 21... Bf8 {[%clk 0:00:04.6]} 22. Nd4
{[%clk 0:00:24.7]} 22... Nxd4 {[%clk 0:00:03.4]} 23. Qxg6 {[%clk 0:00:24.2]}
23... Bxg6 {[%clk 0:00:03.7]} 24. Bxd4 {[%clk 0:00:24.4]} 24... Nd6 {[%clk
0:00:04.6]} 25. Nf4 {[%clk 0:00:22.5]} 1-0

[Event "*** Titled Tuesday Blitz"]
[Site "Chess.com"]
[Date "2020.05.12"]
[Round "4"]
[White "PlotnikovPavel"]
[Black "artooon"]
[Result "0-1"]
[WhiteElo "2496"]
[BlackElo "2724"]
[TimeControl "180+1"]
[EndTime "10:38:14 PDT"]
[Termination "artooon won by resignation"]

1. e4 {[%clk 0:03:00.9]} 1... e5 {[%clk 0:03:00.1]} 2. Nf3 {[%clk 0:03:00.8]}
2... Nc6 {[%clk 0:03:00.5]} 3. Nc3 {[%clk 0:03:01.1]} 3... Nf6 {[%clk
0:03:01.1]} 4. Be2 {[%clk 0:03:01.4]} 4... Bc5 {[%clk 0:03:00.8]} 5. Nxe5 {[%clk
0:03:00.8]} 5... Nxe5 {[%clk 0:03:01.3]} 6. d4 {[%clk 0:03:00.8]} 6... Bd6
{[%clk 0:03:02]} 7. f4 {[%clk 0:02:49.5]} 7... Ng6 {[%clk 0:02:59.9]} 8. e5
{[%clk 0:02:49.4]} 8... Be7 {[%clk 0:03:00.1]} 9. O-O {[%clk 0:02:35.1]} 9...
O-O {[%clk 0:02:59.9]} 10. f5 {[%clk 0:02:33.5]} 10... Nh4 {[%clk 0:02:54.4]}
11. g3 {[%clk 0:02:29.4]} 11... d6 {[%clk 0:02:51.9]} 12. exf6 {[%clk
0:02:27.7]} 12... Bxf6 {[%clk 0:02:52.8]} 13. gxh4 {[%clk 0:02:27.8]} 13... Bxh4
{[%clk 0:02:49.9]} 14. Bd3 {[%clk 0:02:21.8]} 14... Bg5 {[%clk 0:02:48.4]} 15.
Qg4 {[%clk 0:02:19.4]} 15... h6 {[%clk 0:02:47.6]} 16. h4 {[%clk 0:02:11.1]}
16... Bxc1 {[%clk 0:02:46.8]} 17. Raxc1 {[%clk 0:02:12]} 17... c6 {[%clk
0:02:47.6]} 18. Kh1 {[%clk 0:02:07.4]} 18... d5 {[%clk 0:02:46]} 19. Rf3 {[%clk
0:02:03]} 19... Kh8 {[%clk 0:02:43.3]} 20. Ne2 {[%clk 0:01:59.3]} 20... Qf6
{[%clk 0:02:42.6]} 21. Nf4 {[%clk 0:01:58.3]} 21... Qxd4 {[%clk 0:02:41.6]} 22.
c3 {[%clk 0:01:51.7]} 22... Qf6 {[%clk 0:02:40.7]} 23. Rg1 {[%clk 0:01:46]}
23... g6 {[%clk 0:02:34.6]} 24. Qg3 {[%clk 0:01:34.6]} 24... Bxf5 {[%clk
0:02:27.4]} 25. Bxf5 {[%clk 0:01:33]} 25... Qxf5 {[%clk 0:02:28]} 26. Rgf1
{[%clk 0:01:22.6]} 26... Kh7 {[%clk 0:02:16.5]} 27. Nd3 {[%clk 0:01:16.2]} 27...
Qe4 {[%clk 0:02:13.5]} 28. Re1 {[%clk 0:01:12]} 28... Qa4 {[%clk 0:02:10.8]} 29.
Re7 {[%clk 0:01:09.7]} 29... Qd1+ {[%clk 0:02:05.5]} 30. Kh2 {[%clk 0:01:05.4]}
30... Kg8 {[%clk 0:01:59]} 31. Ne5 {[%clk 0:01:00]} 31... Rae8 {[%clk
0:01:53.3]} 32. Rexf7 {[%clk 0:00:31.7]} 32... Rxf7 {[%clk 0:01:47.4]} 33. Nxf7
{[%clk 0:00:30.8]} 33... Kg7 {[%clk 0:00:58.4]} 34. Nd6 {[%clk 0:00:24.1]} 34...
Re2+ {[%clk 0:00:58.5]} 35. Rf2 {[%clk 0:00:23.9]} 35... Qc2 {[%clk 0:00:58.2]}
36. Qe5+ {[%clk 0:00:17.6]} 36... Rxe5 {[%clk 0:00:58]} 37. Rxc2 {[%clk
0:00:18.5]} 37... b6 {[%clk 0:00:58.6]} 38. Kg3 {[%clk 0:00:17.2]} 38... Re6
{[%clk 0:00:58.2]} 39. Nc8 {[%clk 0:00:16]} 39... Re3+ {[%clk 0:00:57.6]} 40.
Kf2 {[%clk 0:00:15.5]} 40... Rh3 {[%clk 0:00:57.3]} 41. Nxa7 {[%clk 0:00:15.6]}
41... Rh2+ {[%clk 0:00:57.1]} 0-1